fUSD/lending_fUSD_20251001
["ID","MTS","AMOUNT","RATE_DAILY","PERIOD"]
[388785134,1759360256380,-194.907851,0.00017,2]
[388785135,1759360256390,-171.082644,0.00017,2]
[388785136,1759360256399,-171.082644,0.00017,2]
[388785137,1759360256409,-1509.947567,0.00017,2]
[388785138,1759360256419,-171.082644,0.00017,2]
[388785139,1759360256429,-1509.947567,0.00017,2]
[388785140,1759360256438,-1509.947567,0.00017,2]
[388785141,1759360256447,-1509.947567,0.00017,2]
[388785142,1759360256457,-151.0,0.00017,2]
[388785143,1759360256466,-171.082644,0.00017,2]
[388785144,1759360256475,-151.0,0.00017,2]
[388785145,1759360256484,-171.082644,0.00017,2]
[388785146,1759360256493,-1509.947567,0.00017,2]
[388785147,1759360256503,-151.0,0.00017,2]
[388785148,1759360256512,-171.082644,0.00017,2]
[388785149,1759360256521,-1509.947567,0.00017,2]
[388785150,1759360256530,-151.0,0.00017,2]
[388785151,1759360256539,-171.082644,0.00017,2]
[388785152,1759360256548,-226.833572,0.00017,2]
[388785153,1759360256558,-1509.947567,0.00017,2]
[388785154,1759360256568,-171.082644,0.00017,2]
[388785155,1759360256577,-1509.947567,0.00017,2]
[388785156,1759360256586,-171.082644,0.00017,2]
[388785157,1759360256596,-171.082644,0.00017,2]
[388785158,1759360256605,-171.08265,0.00017,2]
[388785159,1759360256615,-1509.947567,0.00017,2]
[388785160,1759360256623,-1509.947567,0.00017,2]
[388785161,1759360256633,-186.170087,0.00017,2]
[388785162,1759360256642,-1509.947567,0.00017,2]
[388785163,1759360256651,-186.170087,0.00017,2]
[388785164,1759360256660,-1509.947574,0.00017,2]
[388785165,1759360256670,-186.170087,0.00017,2]
[388785166,1759360256679,-186.170087,0.00017,2]
[388785167,1759360256688,-186.170087,0.00017,2]
[388785168,1759360256698,-186.170087,0.00017,2]
[388785169,1759360256708,-186.170087,0.00017,2]
[388785170,1759360256717,-186.170087,0.00017,2]
[388785171,1759360256727,-151.0,0.00017,2]
[388785172,1759360256735,-186.170087,0.00017,2]
[388785173,1759360256745,-151.0,0.00017,2]
[388785174,1759360256754,-186.170087,0.00017,2]
[388785175,1759360256764,-151.0,0.00017,2]
[388785176,1759360256773,-186.170087,0.00017,2]
[388785177,1759360256782,-151.0,0.00017,2]
[388785178,1759360256792,-186.170087,0.00017,2]
[388785179,1759360256801,-151.0,0.00017,2]
[388785180,1759360256810,-186.170087,0.00017,2]
[388785181,1759360256819,-151.0,0.00017,2]
[388785182,1759360256828,-151.0,0.00017,2]
[388785183,1759360256837,-186.170087,0.00017,2]
[388785184,1759360256847,-151.0,0.00017,2]
[388785185,1759360256856,-186.170087,0.00017,2]
[388785186,1759360256866,-186.170087,0.00017,2]
[388785187,1759360256876,-151.0,0.00017,2]
[388785188,1759360256885,-151.0,0.00017,2]
[388785189,1759360256895,-151.0,0.00017,2]
[388785190,1759360256905,-151.0,0.00017,2]
[388785191,1759360256915,-151.0,0.00017,2]
[388785192,1759360256924,-151.0,0.00017,2]
[388785193,1759360256934,-151.0,0.00017,2]
[388785194,1759360256943,-151.0,0.00017,2]
[388785195,1759360256952,-151.0,0.00017,2]
[388785196,1759360256962,-151.0,0.00017,2]
[388785197,1759360256971,-151.0,0.00017,2]
[388785198,1759360256980,-151.0,0.00017,2]
[388785199,1759360256990,-5509.874337,0.00017,2]
[388785200,1759360256999,-225.293984,0.00017,2]
[388785201,1759360257009,-5509.874337,0.00017,2]
[388785202,1759360257019,-5509.874337,0.00017,2]
[388785203,1759360257029,-5509.874337,0.00017,2]
[388785204,1759360257038,-5509.874337,0.00017,2]
[388785205,1759360257048,-5509.874337,0.00017,2]
[388785206,1759360257058,-5509.874337,0.00017,2]
[388785207,1759360257068,-5509.874337,0.00017,2]
[388785208,1759360257078,-5509.874337,0.00017,2]
[388785209,1759360257090,-715.09559226,0.00017,2]
[388785210,1759360257100,-5509.874337,0.00017,2]
[388785211,1759360257109,-1230.0,0.00017,2]
[388785212,1759360257120,-5509.874337,0.00017,2]
[388785213,1759360257131,-5509.874338,0.00017,2]
[388785214,1759360257141,-151.0,0.00017,2]
[388785215,1759360257151,-151.0,0.00017,2]
[388785216,1759360257161,-151.0,0.00017,2]
[388785217,1759360257171,-3580.447605,0.00017,2]
[388785218,1759360257180,-151.0,0.00017,2]
[388785219,1759360257296,-3580.447605,0.00017,2]
[388785220,1759360257305,-151.0,0.00017,2]
[388785221,1759360257315,-198.432007,0.00017,2]
[388785222,1759360257323,-151.0,0.00017,2]
[388785223,1759360257332,-3580.447605,0.00017,2]
[388785224,1759360257341,-198.432007,0.00017,2]
[388785225,1759360257350,-198.432007,0.00017,2]
[388785226,1759360257360,-3580.447605,0.00017,2]
[388785227,1759360257369,-198.432007,0.00017,2]
[388785228,1759360257378,-3580.447605,0.00017,2]
[388785229,1759360257387,-198.432007,0.00017,2]
[388785230,1759360257397,-3580.447605,0.00017,2]
[388785231,1759360257406,-198.432007,0.00017,2]
[388785232,1759360257415,-151.0,0.00017,2]
[388785233,1759360257425,-3580.447605,0.00017,2]
[388785234,1759360257434,-198.432007,0.00017,2]
[388785235,1759360257443,-3580.447605,0.00017,2]
[388785236,1759360257451,-198.432007,0.00017,2]
[388785237,1759360257461,-3580.447605,0.00017,2]
[388785238,1759360257469,-198.432007,0.00017,2]
[388785239,1759360257478,-3580.447605,0.00017,2]
[388785240,1759360257488,-788.352187,0.00017,2]
[388785241,1759360257497,-3580.447605,0.00017,2]
[388785242,1759360257506,-198.432007,0.00017,2]
[388785243,1759360257515,-788.352187,0.00017,2]
[388785244,1759360257524,-198.432007,0.00017,2]
[388785245,1759360257534,-3580.447609,0.00017,2]
[388785246,1759360257543,-788.352187,0.00017,2]
[388785247,1759360257553,-198.431998,0.00017,2]
[388785248,1759360257562,-176.596851,0.00017,2]
[388785249,1759360257571,-176.596851,0.00017,2]
[388785250,1759360257581,-176.596851,0.00017,2]
[388785251,1759360257590,-788.352187,0.00017,2]
[388785252,1759360257599,-786.33,0.00017,7]
[388785253,1759360257608,-788.352187,0.00017,2]
[388785254,1759360257618,-788.352187,0.00017,2]
[388785255,1759360257627,-176.596851,0.00017,2]
[388785256,1759360257635,-176.596851,0.00017,2]
[388785257,1759360257645,-176.596851,0.00017,2]
[388785258,1759360257654,-788.352187,0.00017,2]
[388785259,1759360257663,-788.352187,0.00017,2]
[388785260,1759360257672,-419.418692,0.00017,2]
[388785261,1759360257681,-151.0,0.00017,2]
[388785262,1759360257691,-788.352187,0.00017,2]
[388785263,1759360257700,-419.418692,0.00017,2]
[388785264,1759360257709,-176.596851,0.00017,2]
[388785265,1759360257718,-419.418692,0.00017,2]
[388785266,1759360257727,-176.596851,0.00017,2]
[388785267,1759360257736,-176.596851,0.00017,2]
[388785268,1759360257745,-788.352187,0.00017,2]
[388785269,1759360257754,-788.352187,0.00017,2]
[388785270,1759360257764,-419.418692,0.00017,2]
[388785271,1759360257773,-788.352187,0.00017,2]
[388785272,1759360257783,-419.418692,0.00017,2]
[388785273,1759360257792,-176.596851,0.00017,2]
[388785274,1759360257801,-419.418692,0.00017,2]
[388785275,1759360257810,-176.596851,0.00017,2]
[388785276,1759360257819,-176.596859,0.00017,2]
[388785277,1759360257828,-419.418692,0.00017,2]
[388785278,1759360257838,-419.418692,0.00017,2]
[388785279,1759360257847,-419.418692,0.00017,2]
[388785280,1759360257856,-419.418692,0.00017,2]
[388785281,1759360257865,-150.0,0.00017011,2]
[388785282,1759360257874,-180.0,0.00017012,2]
[388785283,1759360257883,-168.0,0.00017044,2]
[388785284,1759360257892,-9905.5980765,0.00017055,2]
[388785285,1759360257902,-164.29,0.00017057,2]
[388785286,1759360257911,-250.0,0.000171,2]
[388785287,1759360257922,-250.0,0.000171,2]
[388785288,1759360257931,-250.0,0.000171,2]
[388785289,1759360257940,-250.0,0.000171,2]
[388785290,1759360257949,-250.0,0.000171,2]
[388785291,1759360257958,-250.0,0.000171,2]
[388785292,1759360257967,-250.0,0.000171,2]
[388785293,1759360257976,-250.0,0.000171,2]
[388785294,1759360257985,-250.0,0.000171,2]
[388785295,1759360257994,-250.0,0.000171,2]
[388785296,1759360258004,-250.0,0.000171,2]
[388785297,1759360258014,-250.0,0.000171,2]
[388785298,1759360258023,-250.0,0.000171,2]
[388785299,1759360258033,-250.0,0.000171,2]
[388785300,1759360258042,-250.0,0.000171,2]
[388785301,1759360258051,-250.0,0.000171,2]
[388785302,1759360258060,-250.0,0.000171,2]
[388785303,1759360258069,-250.0,0.000171,2]
[388785304,1759360258079,-250.0,0.000171,2]
[388785305,1759360258092,-250.0,0.000171,2]
[388785306,1759360258102,-250.0,0.000171,2]
[388785307,1759360258112,-250.0,0.000171,2]
[388785308,1759360258121,-250.0,0.000171,2]
[388785309,1759360258133,-250.0,0.000171,2]
[388785310,1759360258142,-250.0,0.000171,2]
[388785311,1759360258152,-250.0,0.000171,2]
[388785312,1759360258164,-250.0,0.000171,2]
[388785313,1759360258173,-250.0,0.000171,2]
[388785314,1759360258183,-250.0,0.000171,2]
[388785315,1759360258192,-250.0,0.000171,2]
[388785316,1759360258202,-250.0,0.000171,2]
[388785317,1759360258211,-344.9,0.000171,2]
[388785318,1759360258220,-866.89,0.000171,2]
[388785319,1759360258229,-344.96,0.000171,2]
[388785320,1759360258239,-151.0,0.00017107,2]
[388785321,1759360258249,-10272.10520533,0.0001711,2]
[388785322,1759360258258,-180.0,0.00017116,2]
[388785323,1759360258267,-30000.0,0.00017124,2]
[388785324,1759360258278,-180.0,0.00017134,2]
[388785325,1759360258287,-7148.2568298,0.00017165,2]
[388785326,1759360258296,-168.0,0.00017174,2]
[388785327,1759360258305,-334.41,0.000172,2]
[388785328,1759360258315,-300.0,0.000172,2]
[388785329,1759360258324,-300.0,0.000172,2]
[388785330,1759360258334,-180.0,0.00017214,2]
[388785331,1759360258343,-998.18589,0.0001724,2]
[388785332,1759360258353,-2114.18,0.00017247,2]
[388785333,1759360258362,-582.23,0.00017261,2]
[388785334,1759360258372,-500.0,0.00017264,2]
[388785335,1759360258382,-150.0,0.00017264,2]
[388785336,1759360258392,-643.88693685,0.00017264,2]
[388785337,1759360258402,-250.0,0.00017264,2]
[388785338,1759360258412,-150.0,0.00017264,2]
[388785339,1759360258421,-1269.0,0.00017264,2]
[388785340,1759360258431,-150.0,0.00017264,2]
[388785341,1759360258441,-150.0,0.00017264,2]
[388785342,1759360258450,-150.0,0.00017264,2]
[388785343,1759360258459,-150.0,0.00017264,2]
[388785344,1759360258469,-150.0,0.00017264,2]
[388785345,1759360258478,-500.0,0.00017264,2]
[388785346,1759360258487,-500.0,0.00017264,2]
[388785347,1759360258497,-870.0,0.00017264,2]
[388785348,1759360258510,-500.0,0.00017264,2]
[388785349,1759360258519,-500.0,0.00017264,2]
[388785350,1759360258531,-150.0,0.00017264,2]
[388785351,1759360258541,-150.0,0.00017264,2]
[388785352,1759360258550,-150.0,0.00017264,2]
[388785353,1759360258559,-150.0,0.00017272,2]
[388785354,1759360258568,-500.0,0.00017272,2]
[388785355,1759360258578,-500.0,0.00017272,2]
[388785356,1759360258588,-500.0,0.00017274,2]
[388785357,1759360258597,-150.0,0.00017274,2]
[388785358,1759360258607,-716.73083424,0.00017275,2]
[388785359,1759360258617,-247.35482233,0.00017283,2]
[388785360,1759360258626,-2000.0,0.000173,2]
[388785361,1759360258635,-1000.0,0.000173,2]
[388785362,1759360258645,-554.52,0.00017301,2]
[388785363,1759360258654,-230.48,0.000174,2]
[388785364,1759360258663,-195.0,0.0001745,2]
[388785365,1759360258672,-410.97,0.00017471,2]
[388785366,1759360258681,-150.0,0.00017471,2]
[388785367,1759360258691,-545.17,0.00017471,2]
[388785368,1759360258699,-150.0,0.00017471,2]
[388785369,1759360258709,-545.17,0.00017471,2]
[388785370,1759360258718,-150.0,0.00017471,2]
[388785371,1759360258728,-544.45,0.00017471,2]
[388785372,1759360258737,-150.0,0.00017471,2]
[388785373,1759360258746,-1196.6,0.00017471,2]
[388785374,1759360258758,-1196.6,0.00017471,2]
[388785375,1759360258768,-1196.6,0.00017471,2]
[388785376,1759360258778,-1196.6,0.00017471,2]
[388785377,1759360258787,-350.8,0.00017471,2]
[388785378,1759360258796,-373.59,0.00017471,2]
[388785379,1759360258805,-2392.69,0.00017471,2]
[388785380,1759360258815,-412.56,0.00017471,2]
[388785381,1759360258824,-1004.51,0.00017471,2]
[388785382,1759360258833,-1196.6,0.00017471,2]
[388785383,1759360258843,-1196.6,0.00017471,2]
[388785384,1759360258852,-412.56,0.00017471,2]
[388785385,1759360258861,-412.56,0.00017471,2]
[388785386,1759360258870,-2073.07,0.00017471,2]
[388785387,1759360258880,-13973.43435612,0.000175,2]
[388785388,1759360258890,-1000.0,0.000175,2]
[388785389,1759360258899,-1025.0,0.000175,2]
[388785390,1759360258908,-290.40281212,0.00017518,2]
[388785391,1759360258917,-1000.0,0.00017521,2]
[388785392,1759360258927,-501.58191572,0.00017521,2]
[388785393,1759360258936,-1000.0,0.00017521,2]
[388785394,1759360258946,-500.0,0.00017521,2]
[388785395,1759360258955,-1000.0,0.00017521,2]
[388785396,1759360258965,-500.0,0.00017521,2]
[388785397,1759360258974,-1000.0,0.00017521,2]
[388785398,1759360258984,-500.0,0.00017521,2]
[388785399,1759360258993,-363.1088271,0.00017521,2]
[388785400,1759360259004,-1000.0,0.00017521,2]
[388785401,1759360259014,-500.0,0.00017521,2]
[388785402,1759360259023,-501.64555354,0.00017521,2]
[388785403,1759360259032,-1000.0,0.00017521,2]
[388785404,1759360259042,-2114.18,0.00017521,2]
[388785405,1759360259051,-180.0,0.00017534,2]
[388785406,1759360259060,-582.23,0.00017535,2]
[388785407,1759360259070,-151.0,0.00017538,2]
[388785408,1759360259079,-350.0,0.00017538,2]
[388785409,1759360259094,-150.0,0.00017538,2]
[388785410,1759360259104,-150.0,0.00017538,2]
[388785411,1759360259113,-1269.0,0.00017538,2]
[388785412,1759360259122,-150.0,0.00017538,2]
[388785413,1759360259134,-150.0,0.00017538,2]
[388785414,1759360259143,-150.0,0.00017538,2]
[388785415,1759360259153,-150.0,0.00017538,2]
[388785416,1759360259163,-229.3077762,0.00017538,2]
[388785417,1759360259172,-500.0,0.00017538,2]
[388785418,1759360259181,-500.0,0.00017538,2]
[388785419,1759360259191,-870.0,0.00017538,2]
[388785420,1759360259199,-450.0,0.00017538,2]
[388785421,1759360259208,-200.0,0.00017538,2]
[388785422,1759360259218,-150.0,0.00017538,2]
[388785423,1759360259228,-150.0,0.00017546,2]
[388785424,1759360259238,-500.0,0.00017546,2]
[388785425,1759360259247,-500.0,0.00017546,2]
[388785426,1759360259258,-333.72446669,0.00017548,2]
[388785427,1759360259267,-256.61547039,0.00017548,2]
[388785428,1759360259276,-168.0,0.00017562,2]
[388785429,1759360259286,-304.6533789,0.00017591,2]
[388785430,1759360259296,-500.0,0.00017726,2]
[388785431,1759360259305,-283.73,0.00017734,2]
[388785432,1759360259314,-998.18589,0.0001775,2]
[388785433,1759360259324,-170.39,0.00017774,2]
[388785434,1759360259333,-2114.18,0.00017795,2]
[388785435,1759360259343,-1000.0,0.00017799,2]
[388785436,1759360259352,-582.23,0.00017809,2]
[388785437,1759360259363,-250.0,0.00017812,2]
[388785438,1759360259372,-250.0,0.00017812,2]
[388785439,1759360259381,-1269.0,0.00017812,2]
[388785440,1759360259390,-150.0,0.00017812,2]
[388785441,1759360259398,-150.0,0.00017812,2]
[388785442,1759360259407,-197.80120988,0.00017812,2]
[388785443,1759360259416,-287.76470192,0.00017812,2]
[388785444,1759360259425,-500.0,0.00017812,2]
[388785445,1759360259434,-350.0,0.00017812,2]
[388785446,1759360259444,-870.0,0.00017812,2]
[388785447,1759360259453,-150.0,0.00017812,2]
[388785448,1759360259463,-200.0,0.0001782,2]
[388785449,1759360259472,-500.0,0.0001782,2]
[388785450,1759360259482,-500.0,0.0001782,2]
[388785451,1759360259491,-168.0,0.00017888,2]
[388785452,1759360259502,-545.17,0.0001789,2]
[388785453,1759360259511,-175.48,0.0001789,2]
[388785454,1759360259521,-545.17,0.0001789,2]
[388785455,1759360259531,-545.17,0.0001789,2]
[388785456,1759360259539,-2392.18,0.0001789,2]
[388785457,1759360259548,-251.97,0.0001789,2]
[388785458,1759360259557,-183.8855397,0.00017902,2]
[388785459,1759360259566,-1000.0,0.0001797,2]
[388785460,1759360259576,-628.47746325,0.0001797,2]
[388785461,1759360259584,-126825.06335255,0.00018,2]
[388785462,1759360259594,-4333.74437804,0.00018,2]
[388785463,1759360259603,-188.5,0.00018017,2]
[388785464,1759360259612,-168.0,0.0001802,2]
[388785465,1759360259621,-1613.48,0.00018055,2]
[388785466,1759360259630,-946.69,0.00018055,2]
[388785467,1759360259639,-2114.18,0.00018068,2]
[388785468,1759360259648,-1500.0,0.00018068,2]
[388785469,1759360259656,-1500.0,0.00018068,2]
[388785470,1759360259666,-1500.0,0.00018068,2]
[388785471,1759360259675,-1500.0,0.00018082,7]
[388785472,1759360259684,-1500.0,0.00018082,7]
[388785473,1759360259693,-1500.0,0.00018082,7]
[388785474,1759360259702,-1500.0,0.00018082,7]
[388785475,1759360259711,-1500.0,0.00018082,7]
[388785476,1759360259720,-1500.0,0.00018082,7]
[388785477,1759360259730,-1500.0,0.00018082,7]
[388785478,1759360259740,-1500.0,0.00018082,7]
[388785479,1759360259750,-1500.0,0.00018082,7]
[388785480,1759360259759,-1500.0,0.00018082,7]
[388785481,1759360259768,-1500.0,0.00018082,7]
[388785482,1759360259777,-1500.0,0.00018082,7]
[388785483,1759360259786,-1500.0,0.00018082,7]
[388785484,1759360259796,-1500.0,0.00018082,7]
[388785485,1759360259805,-1500.0,0.00018082,7]
[388785486,1759360259814,-1500.0,0.00018082,7]
[388785487,1759360259823,-1500.0,0.00018082,7]
[388785488,1759360259832,-1500.0,0.00018082,7]
[388785489,1759360259841,-1500.0,0.00018082,7]
[388785490,1759360259850,-1500.0,0.00018082,7]
[388785491,1759360259859,-1500.0,0.00018082,7]
[388785492,1759360259868,-1500.0,0.00018082,7]
[388785493,1759360259878,-1500.0,0.00018082,7]
[388785494,1759360259887,-1262.379544,0.00018082,7]
[388785495,1759360259896,-582.24417184,0.00018083,2]
[388785496,1759360259906,-151.0,0.00018086,2]
[388785497,1759360259915,-1269.0,0.00018086,2]
[388785498,1759360259924,-285.0,0.00018086,2]
[388785499,1759360259933,-500.0,0.00018086,2]
[388785500,1759360259943,-870.0,0.00018086,2]
[388785501,1759360259951,-150.0,0.00018086,2]
[388785502,1759360259961,-500.0,0.00018094,2]
[388785503,1759360259976,-500.0,0.00018094,2]
[388785504,1759360259986,-5047.77697136,0.0001813,2]
[388785505,1759360259995,-3070.0,0.00018143,2]
[388785506,1759360260004,-3399.0,0.00018143,2]
[388785507,1759360260013,-787.0,0.00018143,2]
[388785508,1759360260023,-2095.917,0.00018143,2]
[388785509,1759360260032,-1264.0,0.00018143,2]
[388785510,1759360260042,-615.83,0.00018143,2]
[388785511,1759360260051,-1586.274,0.00018143,2]
[388785512,1759360260061,-1446.731,0.00018143,2]
[388785513,1759360260070,-570.0,0.00018143,2]
[388785514,1759360260081,-815.0,0.00018143,2]
[388785515,1759360260094,-6234.0,0.00018143,2]
[388785516,1759360260104,-4114.0,0.00018143,2]
[388785517,1759360260113,-18923.0,0.00018143,2]
[388785518,1759360260122,-4235.0,0.00018143,2]
[388785519,1759360260133,-370.35923647,0.0001818,7]
[388785520,1759360260143,-544.93,0.00018192,2]
[388785521,1759360260152,-164.29,0.00018194,2]
[388785522,1759360260163,-150.53,0.00018199,2]
[388785523,1759360260172,-299.512,0.00018199,2]
[388785524,1759360260181,-150.34,0.00018199,2]
[388785525,1759360260190,-170.0,0.00018199,2]
[388785526,1759360260199,-150.0,0.00018199,2]
[388785527,1759360260209,-150.56,0.00018199,2]
[388785528,1759360260218,-151.0,0.00018247,2]
[388785529,1759360260227,-151.0,0.00018247,2]
[388785530,1759360260236,-151.0,0.00018247,2]
[388785531,1759360260245,-151.0,0.00018247,2]
[388785532,1759360260255,-151.0,0.00018247,2]
[388785533,1759360260266,-151.0,0.00018247,2]
[388785534,1759360260276,-151.0,0.00018247,2]
[388785535,1759360260285,-151.0,0.00018247,2]
[388785536,1759360260295,-151.0,0.00018247,2]
[388785537,1759360260304,-151.0,0.00018247,2]
[388785538,1759360260313,-151.0,0.00018247,2]
[388785539,1759360260322,-151.0,0.00018247,2]
[388785540,1759360260332,-151.0,0.00018247,2]
[388785541,1759360260341,-151.0,0.00018247,2]
[388785542,1759360260350,-151.0,0.00018247,2]
[388785543,1759360260360,-239.883515,0.00018247,2]
[388785544,1759360260370,-998.18589,0.0001825,2]
[388785545,1759360260379,-267.46074303,0.00018259,2]
[388785546,1759360260388,-806.9651735,0.00018281,2]
[388785547,1759360260397,-304.6533789,0.00018296,2]
[388785548,1759360260406,-2114.18,0.00018342,2]
[388785549,1759360260415,-420.0,0.00018352,2]
[388785550,1759360260425,-10076.79,0.00018356,2]
[388785551,1759360260434,-334.5472959,0.00018359,2]
[388785552,1759360260443,-1269.0,0.0001836,2]
[388785553,1759360260453,-500.0,0.0001836,2]
[388785554,1759360260463,-870.0,0.0001836,2]
[388785555,1759360260471,-400.0,0.0001836,2]
[388785556,1759360260481,-500.0,0.00018368,2]
[388785557,1759360260490,-500.0,0.00018368,2]
[388785558,1759360260499,-300.0,0.0001837,2]
[388785559,1759360260509,-250.0,0.0001837,2]
[388785560,1759360260518,-330.99156213,0.0001837,2]
[388785561,1759360260528,-300.0,0.0001837,2]
[388785562,1759360260537,-195.0,0.0001837,2]
[388785563,1759360260547,-2000.0,0.0001837,2]
[388785564,1759360260556,-552.80140324,0.0001837,2]
[388785565,1759360260566,-2500.0,0.0001837,2]
[388785566,1759360260575,-195.0,0.0001837,2]
[388785567,1759360260585,-300.0,0.0001837,2]
[388785568,1759360260594,-150.0,0.0001837,2]
[388785569,1759360260603,-500.0,0.0001837,2]
[388785570,1759360260617,-1084.0,0.00018385,2]
[388785571,1759360260626,-1680.0,0.00018443,2]
[388785572,1759360260635,-670.31474812,0.00018446,2]
[388785573,1759360260645,-3003.32371631,0.0001845,2]
[388785574,1759360260654,-480.0,0.00018456,2]
[388785575,1759360260664,-1000.0,0.0001847,2]
[388785576,1759360260673,-500.0,0.0001847,2]
[388785577,1759360260683,-54080.84288611,0.000185,2]
[388785578,1759360261633,-180668.38324898,0.000185,2]
[388785579,1759360261642,-283.73,0.0001854,2]
[388785580,1759360261652,-180.0582684,0.00018566,2]
[388785581,1759360261662,-2114.18,0.00018616,2]
[388785582,1759360261671,-2000.0,0.00018616,2]
[388785583,1759360261680,-2000.0,0.00018616,2]
[388785584,1759360261689,-160.0,0.0001863,2]
[388785585,1759360261699,-160.0,0.0001863,2]
[388785586,1759360261708,-160.0,0.0001863,2]
[388785587,1759360261718,-160.0,0.0001863,2]
[388785588,1759360261727,-160.0,0.0001863,2]
[388785589,1759360261736,-160.0,0.0001863,2]
[388785590,1759360261747,-160.0,0.0001863,2]
[388785591,1759360261757,-160.0,0.0001863,2]
[388785592,1759360261767,-160.0,0.0001863,2]
[388785593,1759360261776,-160.0,0.0001863,2]
[388785594,1759360261785,-160.0,0.0001863,2]
[388785595,1759360261795,-160.0,0.0001863,2]
[388785596,1759360261804,-160.0,0.0001863,2]
[388785597,1759360261813,-160.0,0.0001863,2]
[388785598,1759360261823,-160.0,0.0001863,2]
[388785599,1759360261831,-160.0,0.0001863,2]
[388785600,1759360261840,-160.0,0.0001863,2]
[388785601,1759360261850,-160.0,0.0001863,2]
[388785602,1759360261859,-160.0,0.0001863,2]
[388785603,1759360261869,-160.0,0.0001863,2]
[388785604,1759360261878,-160.0,0.0001863,2]
[388785605,1759360261887,-160.0,0.0001863,2]
[388785606,1759360261895,-160.0,0.0001863,2]
[388785607,1759360261905,-160.0,0.0001863,2]
[388785608,1759360261915,-160.0,0.0001863,2]
[388785609,1759360261924,-160.0,0.0001863,2]
[388785610,1759360261934,-160.0,0.0001863,2]
[388785611,1759360261943,-160.0,0.0001863,2]
[388785612,1759360261952,-160.0,0.0001863,2]
[388785613,1759360261962,-160.0,0.0001863,2]
[388785614,1759360261971,-160.0,0.0001863,2]
[388785615,1759360261980,-160.0,0.0001863,2]
[388785616,1759360261990,-160.0,0.0001863,2]
[388785617,1759360261999,-160.0,0.0001863,2]
[388785618,1759360262009,-160.0,0.0001863,2]
[388785619,1759360262020,-160.0,0.0001863,2]
[388785620,1759360262030,-160.0,0.0001863,2]
[388785621,1759360262040,-160.0,0.0001863,2]
[388785622,1759360262049,-160.0,0.0001863,2]
[388785623,1759360262059,-160.0,0.0001863,2]
[388785624,1759360262068,-160.0,0.0001863,2]
[388785625,1759360262078,-160.0,0.0001863,2]
[388785626,1759360262091,-160.0,0.0001863,2]
[388785627,1759360262100,-160.0,0.0001863,2]
[388785628,1759360262110,-160.0,0.0001863,2]
[388785629,1759360262119,-160.0,0.0001863,2]
[388785630,1759360262130,-160.0,0.0001863,2]
[388785631,1759360262140,-160.0,0.0001863,2]
[388785632,1759360262149,-160.0,0.0001863,2]
[388785633,1759360262160,-160.0,0.0001863,2]